bitfinex-derivatives/quotes_SOLF0:USTF0_20241226
["timestamp","ask_amount","ask_price","bid_price","bid_amount"]
[1735236387404,21.80325027,187.67,187.53,3.6]
[1735236387709,75.22855266,187.68,187.54,3.2742]
[1735236387710,25.00145027,187.68,187.54,3.2742]
[1735236388004,21.80325027,187.68,187.55,1.6751]
[1735236388206,21.80325027,187.68,187.55,17.49609218]
[1735236388611,21.80325027,187.7,187.62,2.6672]
[1735236388809,86.56052198,187.72,187.63,3.6]
[1735236389612,21.87932037,187.73,187.63,3.6]
[1735236389913,21.87932037,187.73,187.66,2.6666]
[1735236389914,2.666,187.71,187.66,2.6666]
[1735236390109,21.87932037,187.73,187.64,1.6091]
[1735236390309,21.87932037,187.73,187.64,3.2134]
[1735236391215,37.70031255,187.77,187.64,3.2134]
[1735236391709,2.666,187.71,187.66,2.6665]
[1735236392111,2.6655,187.74,187.69,2.6662]
[1735236392409,37.70031255,187.81,187.7,3.6]
[1735236392615,2.6648,187.79,187.74,2.6655]
[1735236392815,21.87932037,187.81,187.75,3.6]
[1735236393009,21.87932037,187.81,187.76,3.6]
[1735236393412,15.82099218,187.85,187.76,3.6]
[1735236393609,21.87932037,187.86,187.76,3.6]
[1735236393811,0.87104845,187.85,187.76,3.6]
[1735236394018,21.87932037,187.86,187.76,3.6]
[1735236394411,2.665,187.77,187.76,3.6]
[1735236394812,15.82099218,187.78,187.73,3.6]
[1735236395012,2.6659,187.72,187.71,3.6]
[1735236396011,15.82099218,187.78,187.71,3.6]
[1735236397622,15.82099218,187.82,187.71,3.6]
[1735236398010,15.82099218,187.82,187.74,2.6654]
[1735236398215,15.82099218,187.82,187.71,3.6]
[1735236398216,2.6649,187.79,187.71,3.6]
[1735236398516,15.82099218,187.82,187.71,3.6]
[1735236398716,2.6648,187.79,187.72,2.6656]
[1735236398921,2.6648,187.79,187.71,3.6]
[1735236399116,4.7275,187.89,187.71,19.42099218]
[1735236399321,2.664,187.85,187.71,19.42099218]
[1735236399721,4.7275,187.89,187.77,2.665]
[1735236399921,2.6648,187.79,187.78,3.6]
[1735236400521,15.82099218,187.86,187.78,3.6]
[1735236401135,2.6647,187.8,187.78,3.6]
[1735236401923,2.6644,187.82,187.78,3.6]
[1735236402224,15.82099218,187.9,187.78,3.6]
[1735236402424,19.07579218,187.94,187.78,3.6]
[1735236403129,15.82099218,187.9,187.78,3.6]
[1735236403529,2.6637,187.87,187.81,2.6643]
[1735236403725,2.6637,187.87,187.78,3.6]
[1735236404031,2.6637,187.87,187.83,2.6641]
[1735236404333,2.6637,187.87,187.84,3.6]
[1735236404526,19.07579218,187.94,187.84,3.6]
[1735236404731,19.07579218,187.94,187.76,4.7582]
[1735236405030,2.6638,187.87,187.77,3.6]
[1735236405227,15.82099218,187.9,187.77,3.6]
[1735236405726,19.07579218,187.94,187.77,3.6]
[1735236405930,19.07579218,187.94,187.78,15.82099218]
[1735236406225,19.07579218,187.94,187.83,2.6641]
[1735236406431,19.07579218,187.94,187.84,3.6]
[1735236406628,2.6638,187.87,187.84,3.6]
[1735236407429,15.82099218,187.98,187.88,2.6635]
[1735236407633,15.82099218,187.98,187.89,3.6]
[1735236407825,2.6631,187.91,187.89,3.6]
[1735236408129,15.82099218,187.98,187.88,3.6]
[1735236408735,2.6633,187.9,187.88,3.6]
[1735236409032,15.82099218,187.98,187.88,3.6]
[1735236410227,15.82099218,187.98,187.89,2.6633]
[1735236410628,15.82099218,188.02,187.88,3.6]
[1735236411028,15.82099218,188.02,187.89,4.9865]
[1735236411233,3.2676,188.04,187.89,4.9865]
[1735236411431,3.2676,188.04,187.9,15.82099218]
[1735236411732,15.82099218,188.06,187.9,15.82099218]
[1735236411935,2.6618,188.0,187.9,15.82099218]
[1735236412430,2.6617,188.01,187.9,15.82099218]
[1735236413332,2.6618,188.0,187.9,15.82099218]
[1735236413536,15.82099218,188.06,187.9,15.82099218]
[1735236414333,15.82099218,188.06,187.94,2.6626]
[1735236414533,15.82099218,188.06,187.95,3.6]
[1735236414835,2.6619,188.0,187.96,3.6]
[1735236415135,15.82099218,188.06,187.96,3.6]
[1735236415536,2.6619,187.99,187.96,3.6]
[1735236415835,15.82099218,188.06,187.97,3.6]
[1735236416035,3.136,188.09,187.97,3.6]
[1735236416235,15.82099218,188.1,187.97,3.6]
[1735236416429,3.1928,188.18,187.98,20.66299218]
[1735236416627,2.66,188.13,188.07,2.6607]
[1735236416935,3.1928,188.18,188.08,3.6]
[1735236417137,3.1928,188.18,188.08,6.2606]
[1735236417528,3.1928,188.18,188.08,3.6]
[1735236417729,3.1928,188.18,187.98,20.66299218]
[1735236417936,15.82099218,188.15,187.99,3.6]
[1735236418133,2.661,188.06,187.99,6.2618]
[1735236418333,15.82099218,188.15,187.99,6.2618]
[1735236418334,15.82099218,188.15,187.99,3.6]
[1735236419741,15.82099218,188.15,187.99,6.2619]
[1735236419942,15.82099218,188.15,187.99,3.6]
[1735236420137,2.6611,188.05,187.99,3.6]
[1735236420343,15.82099218,188.15,187.99,3.6]
[1735236421353,2.6608,188.07,188.02,2.6615]
[1735236421545,15.82099218,188.15,187.99,3.6]
[1735236421841,2.6607,188.08,188.03,2.6613]
[1735236422041,2.6607,188.08,188.04,3.6]
[1735236422242,3.1928,188.18,188.04,3.6]
[1735236422741,3.1928,188.18,188.05,3.6]
[1735236422939,2.6609,188.06,188.05,3.6]
[1735236423644,15.82099218,188.16,188.05,3.6]
[1735236424149,2.6601,188.13,188.05,3.6]
[1735236424335,3.1928,188.18,188.06,4.6751]
[1735236425941,15.82099218,188.2,188.06,4.6751]
[1735236426133,5.3159,188.28,188.07,15.82099218]
[1735236426134,15.82099218,188.25,188.07,15.82099218]
[1735236426337,2.6592,188.19,188.07,15.82099218]
[1735236426740,3.2588,188.27,188.11,15.82099218]
[1735236426941,3.2588,188.27,188.12,3.6]
[1735236427147,30.79302037,188.36,188.12,3.6]
[1735236427342,3.2588,188.35,188.12,3.6]
[1735236427942,2.6583,188.25,188.19,2.659]
[1735236428147,2.6583,188.25,188.2,3.6]
[1735236428744,15.82099218,188.34,188.2,3.6]
[1735236428945,2.6584,188.24,188.2,3.6]
[1735236429348,2.6588,188.22,188.2,3.6]
[1735236430541,15.82099218,188.34,188.2,3.6]
[1735236431050,2.658,188.27,188.21,2.6587]
[1735236431239,2.658,188.27,188.2,3.6]
[1735236431443,15.82099218,188.34,188.2,3.6]
[1735236432041,2.6583,188.25,188.2,3.6]
[1735236432241,15.82099218,188.34,188.2,3.6]
[1735236432651,2.6588,188.21,188.2,3.6]
[1735236433550,15.82099218,188.26,188.2,3.6]
[1735236433750,15.82099218,188.26,188.16,3.6]
[1735236433953,3.2736,188.25,188.16,3.6]
[1735236434143,2.6594,188.17,188.16,3.6]
[1735236434343,3.2736,188.25,188.16,3.6]
[1735236434553,2.6593,188.18,188.16,3.6]
[1735236434752,3.2736,188.25,188.16,3.6]
[1735236435155,2.6586,188.23,188.16,3.6]
[1735236435354,3.2736,188.25,188.16,3.6]
[1735236436151,2.6594,188.17,188.16,3.6]
[1735236436447,15.82099218,188.22,188.06,4.7973]
[1735236436652,2.6602,188.11,188.07,3.6]
[1735236436954,15.82099218,188.18,188.06,4.7973]
[1735236437148,15.82099218,188.18,188.08,3.6]
[1735236437851,2.6603,188.11,188.08,3.6]
[1735236438048,15.82099218,188.18,188.08,3.6]
[1735236438452,15.82099218,188.22,188.09,2.6605]
[1735236438755,15.82099218,188.22,188.08,3.6]
[1735236438951,2.6598,188.15,188.09,2.6605]
[1735236439345,15.82099218,188.22,188.08,3.6]
[1735236439549,2.6599,188.14,188.08,3.6]
[1735236439952,15.82099218,188.22,188.08,3.6]
[1735236440554,2.6603,188.11,188.08,3.6]
[1735236441553,2.6605,188.09,188.08,3.6]
[1735236441751,15.82099218,188.18,188.01,4.8597]
[1735236441946,15.82099218,188.18,188.02,3.6]
[1735236442146,2.6609,188.07,188.02,3.6]
[1735236442352,15.82099218,188.18,188.02,3.6]
[1735236442548,5.3176,188.22,188.02,3.6]
[1735236442855,2.6611,188.06,188.03,3.6]
[1735236443058,15.82099218,188.17,188.03,3.6]
[1735236443265,2.6611,188.05,188.03,3.6]
[1735236443752,3.231,188.16,188.03,3.6]
[1735236443960,2.6612,188.04,188.01,4.8597]
[1735236444158,2.6612,188.04,188.02,3.6]
[1735236445563,2.6611,188.06,188.02,6.2615]
[1735236445858,3.231,188.16,188.02,3.6]
[1735236446261,2.6608,188.08,188.04,2.6612]
[1735236446662,3.231,188.16,188.02,3.6]
[1735236447259,2.6609,188.07,188.02,3.6]
[1735236447466,1.6087,188.16,188.02,3.6]
[1735236447656,15.82099218,188.22,188.03,15.82099218]
[1735236447855,2.6597,188.15,188.03,15.82099218]
[1735236448060,15.82099218,188.22,188.07,15.82099218]
[1735236448264,2.6599,188.14,188.1,2.6604]
[1735236448465,2.6599,188.14,188.09,1.5741]
[1735236449167,2.6599,188.14,188.1,2.6602]
[1735236449366,15.82099218,188.22,188.09,1.5741]
[1735236449664,15.82099218,188.22,188.08,3.6]
[1735236449867,21.13849218,188.22,188.08,3.6]
[1735236450166,2.6605,188.09,188.08,3.6]
[1735236451268,2.6607,188.08,188.04,2.6612]
[1735236451466,3.2351,188.17,188.05,3.6]
[1735236452266,2.6603,188.11,188.06,2.6609]
[1735236452466,3.2351,188.17,188.05,3.6]
[1735236454570,21.13849218,188.22,188.05,3.6]
[1735236454767,18.98459218,188.22,188.05,3.6]
[1735236454967,2.6598,188.15,188.05,3.6]
[1735236455867,2.6599,188.14,188.1,2.6603]
[1735236456068,2.6599,188.14,188.11,3.6]
[1735236456262,18.98459218,188.22,188.11,3.6]
[1735236456469,18.98459218,188.22,188.11,6.2602]
[1735236456670,2.6597,188.15,188.11,6.2602]
[1735236457064,18.98459218,188.22,188.11,3.6]
[1735236457264,18.98459218,188.22,188.12,3.6]
[1735236457673,15.82099218,188.18,188.12,3.6]
[1735236457875,15.82099218,188.18,188.02,1.6784]
[1735236458069,15.82099218,188.18,188.03,3.6]
[1735236458680,15.82099218,188.18,188.03,6.2613]
[1735236458681,2.6599,188.14,188.03,6.2613]
[1735236458881,15.82099218,188.18,188.03,3.6]
[1735236459177,18.98459218,188.22,188.03,3.6]
[1735236459382,18.98459218,188.22,188.06,15.82099218]
[1735236459682,18.98459218,188.22,188.03,3.6]
[1735236459873,15.82099218,188.18,188.03,3.6]
[1735236460380,2.6611,188.06,188.03,3.6]
[1735236461582,2.6611,188.05,188.03,3.6]
[1735236462385,2.6613,188.04,188.02,1.6784]
[1735236462681,2.6613,188.04,188.03,3.58]
[1735236463482,2.6616,188.01,188.0,55.3]
[1735236463778,15.82099218,188.1,187.93,1.5444]
[1735236463983,15.82099218,188.1,187.94,3.58]
[1735236464179,15.82099218,188.06,187.94,3.58]
[1735236465884,2.6621,187.98,187.95,3.58]
[1735236466081,15.82099218,188.06,187.95,3.58]
[1735236466282,3.1966,188.05,187.95,3.58]
[1735236467783,3.1966,188.05,187.95,6.2424]
[1735236468087,2.6614,188.03,187.95,3.58]
[1735236468884,2.6612,188.05,187.99,2.6619]
[1735236469187,19.04479218,188.1,188.0,3.58]
[1735236469692,2.6611,188.05,188.0,6.2418]
[1735236469985,19.04479218,188.1,188.0,3.58]
[1735236470981,21.85882691,188.16,188.0,3.58]
[1735236470982,15.82099218,188.14,188.0,3.58]
[1735236472090,15.82099218,188.14,188.01,3.2767]
[1735236472287,2.6607,188.08,188.03,2.6614]
[1735236472885,15.82099218,188.14,188.02,2.6615]
[1735236473090,2.6608,188.07,188.01,4.8697]
[1735236473490,2.6607,188.08,188.03,2.6613]
[1735236473692,21.85882691,188.19,188.01,4.8697]
[1735236473988,2.6604,188.1,188.05,2.661]
[1735236474189,28.74232691,188.19,188.01,4.8697]
[1735236474389,15.82099218,188.15,188.02,3.58]
[1735236474591,2.661,188.06,188.02,3.58]
[1735236474897,15.82099218,188.15,188.02,3.58]
[1735236475092,2.661,188.06,188.02,3.58]
[1735236475290,15.82099218,188.15,188.02,3.58]
[1735236476294,2.6605,188.09,188.04,2.6612]
[1735236478397,2.6604,188.11,188.02,3.58]
[1735236478690,1.624,188.19,188.02,19.40099218]
[1735236478884,23.48282691,188.19,188.02,19.40099218]
[1735236479091,2.6601,188.13,188.08,2.6606]
[1735236479294,23.48282691,188.19,188.09,3.58]
[1735236479496,23.48282691,188.19,188.1,3.58]
[1735236479692,1.624,188.19,188.1,3.58]
[1735236480795,2.6602,188.11,188.1,3.58]
[1735236480999,1.624,188.19,188.1,3.58]
[1735236481299,2.6602,188.11,188.1,3.58]
[1735236481597,1.624,188.19,188.1,3.58]
[1735236482297,15.82099218,188.2,188.1,3.58]
[1735236482798,15.82099218,188.2,188.02,15.82099218]
[1735236482992,0.87372755,188.19,188.03,3.58]
[1735236483498,5.3186,188.18,188.03,3.58]
[1735236483687,15.82099218,188.15,188.03,3.58]
[1735236483888,15.82099218,188.11,188.03,3.58]
[1735236484698,2.6612,188.04,188.03,3.58]
[1735236485797,15.82099218,188.11,187.96,1.6765]
[1735236485798,15.82099218,188.07,187.99,3.58]
[1735236486297,2.6618,188.0,187.99,3.58]
[1735236487095,2.662,187.99,187.96,1.6765]
[1735236487292,19.40099218,188.11,187.96,1.6765]
[1735236487494,0.87287286,188.1,187.97,3.58]
[1735236487691,2.6621,187.99,187.97,3.58]
[1735236487996,0.87287286,188.1,187.97,3.58]
[1735236487997,15.82099218,188.07,187.97,3.58]
[1735236488887,1.5718,188.06,187.91,65.7858199]
[1735236489095,15.82099218,188.03,187.91,3.48613035]
[1735236489397,15.82099218,188.03,187.91,1.79123035]
[1735236489598,1.6013,188.02,187.92,3.58]
[1735236489789,1.6013,188.02,187.89,3.1355]
[1735236489994,15.82099218,187.99,187.9,3.58]
[1735236490193,15.82099218,187.99,187.83,1.6949]
[1735236490389,15.82099218,187.95,187.84,3.58]
[1735236490799,2.6637,187.87,187.84,3.58]
[1735236491001,15.82099218,187.99,187.84,3.58]
[1735236491298,15.82099218,187.95,187.84,3.58]
[1735236491493,15.82099218,187.95,187.85,3.58]
[1735236492097,2.6638,187.86,187.85,3.58]
[1735236492796,15.82099218,187.95,187.85,3.58]
[1735236492996,2.6636,187.88,187.85,3.58]
[1735236493500,1.5909,187.97,187.85,3.58]
[1735236494601,2.6632,187.91,187.85,3.58]
[1735236495296,1.5909,187.97,187.85,3.58]
[1735236495499,2.6633,187.9,187.85,3.58]
[1735236496103,2.6627,187.94,187.85,3.58]
[1735236496304,1.6013,188.02,187.85,3.58]
[1735236496597,2.6629,187.92,187.85,3.58]
[1735236497397,2.6631,187.91,187.85,3.58]
[1735236497603,1.6013,188.02,187.85,3.58]
[1735236498004,2.6629,187.93,187.87,2.6636]
[1735236498199,15.82099218,188.03,187.85,3.58]
[1735236498399,15.82099218,188.03,187.88,2.6633]
[1735236498598,2.6629,187.93,187.89,1.5393]
[1735236498801,2.6629,187.93,187.9,3.54]
[1735236499003,15.82099218,188.03,187.9,3.54]
[1735236499204,2.6626,187.94,187.91,1.6593]
[1735236500099,15.82099218,188.03,187.91,1.6593]
[1735236500299,1.6246,188.04,187.91,1.6593]
[1735236500504,1.6246,188.04,187.92,1.6153]
[1735236500995,15.82099218,188.07,187.92,1.6153]
[1735236501705,15.82099218,188.03,187.92,1.6153]
[1735236501900,15.82099218,188.03,187.91,1.6593]
[1735236502395,1.5287,188.08,187.91,1.6593]
[1735236502396,15.82099218,188.07,187.91,1.6593]
[1735236502798,15.82099218,188.07,187.94,2.6625]
[1735236502799,2.6618,188.0,187.94,2.6625]
[1735236503002,2.6618,188.0,187.95,3.54]
[1735236503203,15.82099218,188.07,187.95,3.54]
[1735236503700,15.82099218,188.03,187.95,3.54]
[1735236503902,2.6624,187.96,187.95,3.54]
[1735236506699,15.82099218,188.07,187.95,3.54]
[1735236507906,2.6624,187.96,187.95,3.54]
[1735236509206,2.6622,187.98,187.95,3.54]
[1735236509708,15.82099218,188.07,187.95,3.54]
[1735236509907,2.6622,187.98,187.95,3.54]
[1735236511313,2.6622,187.97,187.95,3.54]
[1735236511513,15.82099218,188.07,187.95,3.54]
[1735236512511,2.6622,187.98,187.95,3.54]
[1735236513212,2.6622,187.97,187.95,3.54]
[1735236513907,2.6624,187.96,187.95,3.54]
[1735236517418,15.82099218,188.07,187.78,22.06697981]
[1735236517721,15.82099218,188.01,187.82,15.82099218]
[1735236518916,17.50939218,188.01,187.82,15.82099218]
[1735236519515,1.6257,188.0,187.83,3.54]
[1735236519719,3.1792,188.0,187.83,3.54]
[1735236520218,3.1792,188.0,187.85,2.6639]
[1735236520615,3.1792,188.0,187.83,3.54]
[1735236520827,15.82099218,187.97,187.83,3.54]
[1735236521323,2.6634,187.89,187.84,2.664]
[1735236522022,15.82099218,187.97,187.84,2.664]
[1735236522219,2.6635,187.88,187.84,2.664]
[1735236522519,15.82099218,187.97,187.83,3.54]
[1735236522725,2.6633,187.9,187.86,2.6637]
[1735236523623,2.663,187.92,187.83,3.54]
[1735236524117,27.18202691,188.02,187.91,2.6631]
[1735236524324,5.3232,188.02,187.92,3.52]
[1735236524921,2.6626,187.94,187.92,3.52]
[1735236526121,2.6625,187.96,187.92,6.1828]
[1735236526826,21.93764737,188.08,187.93,3.1777]
[1735236527021,21.93764737,188.08,187.94,1.6734]
[1735236527326,2.6617,188.01,187.97,2.6622]
[1735236527524,2.6617,188.01,187.98,3.52]
[1735236528226,21.93764737,188.08,187.98,3.52]
[1735236528428,103.57158169,188.1,187.98,3.52]
[1735236528429,2.6618,188.0,187.98,3.52]
[1735236530230,2.6615,188.03,187.98,3.52]
[1735236531125,26.71694737,188.12,187.98,3.52]
[1735236531126,23.49934737,188.12,187.98,19.34099218]
[1735236531324,21.93764737,188.12,187.98,19.34099218]
[1735236531927,21.93764737,188.12,188.02,15.82099218]
[1735236532222,21.93764737,188.15,188.03,8.4243]
[1735236533731,90.93658951,188.18,188.03,8.4243]
[1735236533732,3.186,188.18,188.03,8.4243]
[1735236534426,2.6601,188.13,188.07,2.6607]
[1735236534630,2.6601,188.13,188.08,3.52]
[1735236535929,2.6595,188.17,188.1,2.6602]
[1735236536129,23.53024737,188.23,188.1,2.6602]
[1735236536330,0.8743366,188.22,188.08,3.52]
[1735236536630,2.6594,188.17,188.12,2.66]
[1735236536837,1.5926,188.23,188.13,3.52]
[1735236537127,1.5926,188.23,188.15,2.6596]
[1735236537633,2.6591,188.19,188.14,3.52]
[1735236537834,15.82099218,188.21,188.14,3.52]
[1735236538329,15.82099218,188.21,188.12,3.52]
[1735236538533,15.82099218,188.17,188.02,1.5986]
[1735236538733,2.6606,188.09,188.02,1.5986]
[1735236538932,3.2131,188.16,188.04,2.6612]
[1735236539135,1.6538,188.15,188.04,2.6612]
[1735236539630,1.6538,188.15,188.05,3.5]
[1735236540038,2.6603,188.11,188.05,6.1611]
[1735236541132,2.6601,188.12,188.06,2.6608]
[1735236541436,1.6538,188.15,188.05,3.5]
[1735236542538,15.82099218,188.21,188.05,3.5]
[1735236542729,15.82099218,188.21,188.06,1.6188]
[1735236542930,0.87418642,188.2,188.06,1.6188]
[1735236543129,15.82099218,188.21,188.06,1.6188]
[1735236543630,4.7532,188.23,188.06,1.6188]
[1735236544030,2.6594,188.18,188.06,1.6188]
[1735236544530,2.6594,188.18,188.08,15.82099218]
[1735236544732,4.7532,188.23,188.08,15.82099218]
[1735236545034,2.6591,188.19,188.09,1.6695]
[1735236545235,2.6591,188.19,188.1,5.0979]
[1735236545732,1.5341,188.23,188.15,2.6595]
[1735236545926,1.5341,188.23,188.16,3.5]
[1735236546824,2.6588,188.21,188.16,3.5]
[1735236547027,1.5341,188.23,188.16,3.5]
[1735236547434,1.5917,188.28,188.16,3.5]
[1735236547938,2.6592,188.19,188.16,3.5]
[1735236548327,1.5917,188.28,188.16,3.5]
[1735236548838,1.5917,188.28,188.17,2.6594]
[1735236549336,2.6586,188.23,188.17,2.6594]
[1735236549537,2.6586,188.23,188.18,2.6592]
[1735236550126,1.5917,188.28,188.16,3.5]
[1735236550637,2.6584,188.24,188.18,2.6591]
[1735236550833,2.6584,188.24,188.16,3.5]
[1735236551536,2.6586,188.23,188.19,2.6591]
[1735236551937,1.5917,188.28,188.19,2.6591]
[1735236552341,1.5917,188.28,188.16,3.5]
[1735236552938,2.6584,188.25,188.2,2.6588]
[1735236553139,2.6584,188.25,188.21,3.44]
[1735236553439,2.6587,188.22,188.21,3.44]
[1735236555942,2.6584,188.24,188.21,3.44]
[1735236556140,15.82099218,188.3,188.21,3.44]
[1735236556643,2.6582,188.26,188.22,2.6587]
[1735236556941,2.6582,188.26,188.21,3.44]
[1735236557142,2.6582,188.26,188.21,6.0988]
[1735236557741,15.82099218,188.34,188.21,6.0988]
[1735236557943,0.87410928,188.33,188.24,2.6584]
[1735236558240,2.6574,188.31,188.21,13.29928089]
[1735236558447,13.10328089,188.35,188.24,2.6583]
[1735236558746,2.6578,188.29,188.24,2.6583]
[1735236559038,13.10328089,188.35,188.24,2.6583]
[1735236559237,2.6578,188.29,188.24,2.6583]
[1735236559543,13.10328089,188.35,188.25,2.6581]
[1735236559744,13.10328089,188.35,188.26,3.44]
[1735236560439,9.85928089,188.32,188.26,3.44]
[1735236560841,2.658,188.27,188.26,3.44]
[1735236562239,9.85928089,188.29,188.12,9.85928089]
[1735236562542,9.85928089,188.26,188.15,2.6595]
[1735236562742,9.85928089,188.26,188.13,3.44]
[1735236562938,9.85928089,188.23,188.11,3.2395]
[1735236563141,9.85928089,188.23,188.12,3.44]
[1735236564242,18.99593241,188.25,188.12,3.44]
[1735236564948,18.99593241,188.25,188.13,3.44]
[1735236566349,3.2006,188.25,188.13,3.44]
[1735236566543,2.6586,188.23,188.18,2.6592]
[1735236566743,1.6622,188.28,188.19,3.44]
[1735236567050,1.6622,188.28,188.2,3.44]
[1735236567238,2.6581,188.26,188.21,6.0988]
[1735236567437,21.82415583,188.31,188.21,6.0988]
[1735236567645,21.82415583,188.31,188.22,2.6586]
[1735236567646,2.6578,188.28,188.22,2.6586]
[1735236567949,21.82415583,188.31,188.21,3.44]
[1735236568348,1.6136,188.35,188.21,3.44]
[1735236568748,1.6136,188.35,188.22,2.6585]
[1735236568946,1.6136,188.35,188.21,3.44]
[1735236569339,2.6578,188.28,188.23,2.6585]
[1735236569744,1.6136,188.35,188.21,3.44]
[1735236569948,3.3109,188.39,188.23,15.79533241]
[1735236570152,3.3109,188.39,188.24,55.28]
[1735236571050,2.657,188.34,188.29,2.6576]
[1735236571354,3.3109,188.39,188.3,3.44]
[1735236571544,3.3109,188.39,188.31,3.44]
[1735236572851,2.6571,188.34,188.31,3.44]
[1735236573250,3.3109,188.39,188.24,55.28]
[1735236573655,3.3109,188.39,188.25,3.44]
[1735236574158,0.87507154,188.38,188.25,3.44]
[1735236575449,0.87507154,188.38,188.24,55.28]
[1735236575658,15.79533241,188.36,188.24,55.28]
[1735236575860,15.79533241,188.32,188.25,3.44]
[1735236577256,2.6581,188.26,188.25,3.44]
[1735236577457,15.79533241,188.28,188.21,3.44]
[1735236577659,2.6594,188.17,188.12,58.5054]
[1735236577955,1.6313,188.27,188.13,3.44]
[1735236578150,2.6596,188.16,188.13,3.44]
[1735236580356,15.79533241,188.24,188.13,3.44]
[1735236580557,2.66,188.15,188.13,3.44]
[1735236581357,15.79533241,188.24,188.13,3.44]
[1735236582660,3.1271,188.26,188.13,3.44]
[1735236582861,2.6594,188.19,188.13,3.44]
[1735236583061,2.6594,188.19,188.14,1.6646]
[1735236583367,3.1271,188.26,188.14,1.6646]
[1735236583368,2.6596,188.18,188.14,1.6646]
[1735236583569,3.1271,188.26,188.15,3.4]
[1735236583973,2.6598,188.16,188.15,3.4]
[1735236587667,3.1271,188.26,188.15,3.4]
[1735236588672,2.6588,188.23,188.15,3.4]
[1735236588977,3.1271,188.26,188.15,3.4]
[1735236589478,1.6313,188.27,188.15,6.0598]
[1735236589679,21.82415583,188.29,188.15,19.19533241]
[1735236589976,3.2824,188.31,188.15,19.19533241]
[1735236590673,2.6586,188.25,188.19,2.6592]
[1735236590873,2.6586,188.25,188.2,3.4]
[1735236591176,2.6581,188.28,188.23,2.6587]
[1735236591372,21.82415583,188.35,188.21,4.6971]
[1735236591673,2.6581,188.28,188.23,2.6588]
[1735236592381,2.6584,188.27,188.23,2.6588]
[1735236594571,2.6581,188.28,188.24,2.6586]
[1735236594775,2.6581,188.28,188.25,3.4]
[1735236595675,2.6583,188.27,188.21,4.6971]
[1735236595877,15.79533241,188.36,188.22,3.4]
[1735236596083,0.87535222,188.35,188.22,3.4]
[1735236596381,2.6588,188.23,188.22,3.4]
[1735236597680,2.6587,188.24,188.22,3.4]
[1735236598782,2.6588,188.23,188.22,3.4]
[1735236599378,15.79533241,188.32,188.22,3.4]
[1735236599578,15.79533241,188.28,188.2,3.4]
[1735236599782,2.6592,188.2,188.19,3.4]
[1735236599984,4.8686,188.27,188.18,3.4]
[1735236600377,2.6594,188.19,188.18,3.4]
[1735236602381,4.8686,188.27,188.12,55.28]
[1735236602382,15.79533241,188.24,188.12,55.28]
[1735236602585,0.87531535,188.23,188.12,55.28]
[1735236602889,2.6601,188.14,188.13,3.4]
[1735236603780,1.654,188.19,188.13,3.4]
[1735236603979,11.66742269,188.22,188.13,3.4]
[1735236603980,3.99016591,188.22,188.13,3.4]
[1735236604284,1.654,188.24,188.13,3.4]
[1735236604482,22.69999474,188.23,188.13,3.4]
[1735236604684,21.82415583,188.23,188.13,3.4]
[1735236605089,2.6595,188.18,188.13,3.4]
[1735236605393,21.82415583,188.23,188.13,3.4]
[1735236605591,2.6591,188.21,188.13,3.4]
[1735236605780,1.654,188.24,188.13,3.4]
[1735236606190,2.6596,188.18,188.13,3.4]